bitfinex-derivatives/quotes_ETHF0:USTF0_20250524
["timestamp","ask_amount","ask_price","bid_price","bid_amount"]
[1748126838045,0.78873,2534.7,2534.6,0.7141404]
[1748126838348,0.78885,2534.3,2534.2,0.98673168]
[1748126838553,3.2078,2534.3,2534.2,1.77561168]
[1748126838759,3.99665,2534.3,2534.2,1.77561168]
[1748126839050,5.41015,2534.3,2534.2,0.98673168]
[1748126839238,0.78891,2534.1,2534.0,0.78893]
[1748126839643,0.78891,2534.1,2534.0,16.48]
[1748126839940,2.85721,2534.1,2534.0,16.48]
[1748126840948,0.78898,2534.0,2533.8,0.78899]
[1748126841151,1.2983,2533.9,2533.8,0.78899]
[1748126841355,1.2983,2533.9,2533.8,17.26999]
[1748126841847,2.08728,2533.9,2533.8,16.481]
[1748126842149,2.08728,2533.9,2533.5,4.5864]
[1748126842150,0.78906,2533.7,2533.5,4.5864]
[1748126842351,1.2983,2533.9,2533.6,16.481]
[1748126842655,0.78902,2533.8,2533.6,17.27004]
[1748126842851,1.2983,2533.7,2533.6,17.27004]
[1748126843150,1.9537,2533.7,2533.6,17.27004]
[1748126845855,3.2078,2533.9,2533.8,0.78901]
[1748126846153,3.2078,2533.9,2533.6,16.481]
[1748126846154,1.9935,2534.1,2534.0,0.78895]
[1748126846351,1.9935,2534.1,2534.0,17.27195]
[1748126846554,1.3387,2534.1,2534.0,17.27195]
[1748126847454,1.3387,2534.1,2534.0,18.67985]
[1748126847648,1.3387,2534.1,2533.9,0.78897]
[1748126847849,1.3387,2534.1,2534.0,0.78895]
[1748126848255,1.3387,2534.1,2533.9,0.78896]
[1748126848555,0.78895,2534.0,2533.9,0.78896]
[1748126848750,2.12764,2534.1,2534.0,0.78895]
[1748126848953,0.78894,2534.1,2534.0,0.78895]
[1748126850855,4.30171,2534.2,2534.0,0.78895]
[1748126851060,3.5128,2534.2,2534.1,0.78892]
[1748126851555,3.5128,2534.2,2533.7,19.86448]
[1748126851756,4.3017,2534.2,2534.1,0.78892]
[1748126852550,0.78893,2534.1,2534.0,0.78893]
[1748126853157,4.30171,2534.2,2534.1,0.78892]
[1748126853661,3.5128,2534.2,2534.1,0.78892]
[1748126853857,4.30169,2534.2,2534.1,0.78892]
[1748126855163,4.37718626,2534.2,2534.1,0.78892]
[1748126855560,3.58829626,2534.2,2534.1,0.78892]
[1748126855754,0.07549626,2534.2,2534.1,17.27392]
[1748126863068,3.28329626,2534.2,2534.0,2.14784]
[1748126863263,0.78892,2534.1,2534.0,2.14784]
[1748126863461,4.76129626,2534.2,2534.1,0.78892]
[1748126863766,4.76129626,2534.2,2534.1,17.25192]
[1748126865367,4.76129626,2534.2,2534.1,16.463]
[1748126865870,3.97239626,2534.2,2534.1,17.25192]
[1748126866574,3.97239626,2534.2,2534.1,0.78892]
[1748126866874,3.97239626,2534.2,2534.1,17.25192]
[1748126867265,4.76128626,2534.2,2534.1,17.25192]
[1748126868975,3.28329626,2534.2,2534.1,17.25192]
[1748126869178,4.07218626,2534.2,2534.1,17.25192]
[1748126869779,3.28329626,2534.2,2534.1,17.25192]
[1748126873173,0.07549626,2534.2,2534.1,17.25192]
[1748126873472,2.33883219,2534.4,2534.3,0.78886]
[1748126873977,2.33883219,2534.4,2534.3,5.78886]
[1748126874175,2.33883219,2534.4,2534.3,7.08666]
[1748126874780,0.305,2534.6,2534.5,0.78879]
[1748126874980,0.305,2534.6,2534.5,18.11584882]
[1748126875680,0.305,2534.6,2534.5,19.41364882]
[1748126876079,0.305,2534.6,2534.5,19.41435742]
[1748126877782,0.00592827,2534.8,2534.7,0.78286926]
[1748126877976,0.00592827,2534.8,2534.7,1.64879012]
[1748126878177,0.79462827,2534.8,2534.7,1.64879012]
[1748126878683,0.79462827,2534.8,2534.7,18.10979012]
[1748126878885,0.00592827,2534.8,2534.7,18.10979012]
[1748126879682,0.79462827,2534.8,2534.7,18.10979012]
[1748126880484,0.79462827,2534.8,2534.7,0.86592086]
[1748126880688,2.11412827,2534.8,2534.7,17.0263765]
[1748126881186,2.11412827,2534.8,2534.7,17.02581822]
[1748126881382,7.11412827,2534.8,2534.7,0.56481822]
[1748126882486,2.11412827,2534.8,2534.7,0.56481822]
[1748126882878,0.78873,2534.7,2534.6,16.461]
[1748126883079,2.12563,2534.7,2534.6,17.02583946]
[1748126883381,0.00592827,2534.8,2534.7,0.78873]
[1748126883587,0.79462827,2534.8,2534.7,2.96848487]
[1748126883987,0.79462827,2534.8,2534.7,0.86545487]
[1748126884189,2.13152827,2534.8,2534.7,0.56483946]
[1748126884782,2.20705453,2534.8,2534.7,1.35354266]
[1748126885083,2.20705453,2534.8,2534.7,17.02581266]
[1748126885284,2.20705453,2534.8,2534.7,0.56481266]
[1748126885486,2.20705453,2534.8,2534.7,17.02581266]
[1748126886488,2.20705453,2534.8,2534.7,17.02577185]
[1748126886890,1.41832453,2534.8,2534.7,17.81450185]
[1748126887389,2.20702453,2534.8,2534.7,17.02577185]
[1748126887890,2.20702453,2534.8,2534.7,18.39937185]
[1748126888388,2.20702453,2534.8,2534.7,18.39930984]
[1748126889381,2.20702453,2534.8,2534.7,0.56470984]
[1748126890190,0.78873,2534.7,2534.6,16.432]
[1748126890487,2.14463,2534.7,2534.6,16.99669268]
[1748126891985,2.14463,2534.7,2534.6,0.56469268]
[1748126892295,0.78882,2534.4,2534.3,0.78884]
[1748126892595,3.2078,2534.5,2534.4,0.78882]
[1748126892794,3.99659,2534.5,2534.4,2.97204797]
[1748126893395,3.2078,2534.5,2534.4,2.97204797]
[1748126893994,3.2078,2534.5,2534.4,2.9720599]
[1748126894790,3.99654,2534.7,2534.6,0.78876]
[1748126894990,3.99654,2534.7,2534.6,1.6540999]
[1748126895198,3.99654,2534.7,2534.6,0.8653399]
[1748126895392,3.99654,2534.7,2534.6,16.99676046]
[1748126895591,5.35424,2534.7,2534.6,16.99676046]
[1748126896189,5.35424,2534.7,2534.6,17.78552046]
[1748126896589,3.2078,2534.7,2534.6,17.78552046]
[1748126896794,3.2078,2534.7,2534.6,18.08623632]
[1748126896996,3.2078,2534.7,2534.6,20.18123632]
[1748126897198,3.99653,2534.7,2534.6,20.18123632]
[1748126897697,3.99653,2534.7,2534.6,20.18125846]
[1748126898200,3.2078,2534.7,2534.6,20.18125846]
[1748126899592,0.08142453,2534.8,2534.6,20.18125846]
[1748126899797,0.87013453,2534.8,2534.7,1.65228855]
[1748126900000,0.79463827,2534.8,2534.7,1.65228855]
[1748126900297,0.79463827,2534.8,2534.7,0.86355855]
[1748126900491,0.79463827,2534.8,2534.7,17.29455855]
[1748126900695,0.79463827,2534.8,2534.7,1.65228855]
[1748126900890,0.79463827,2534.8,2534.7,18.08328855]
[1748126901494,0.79463827,2534.8,2534.7,17.2949993]
[1748126902194,0.79463827,2534.8,2534.7,0.8639993]
[1748126902400,7.40393827,2534.8,2534.7,1e-08]
[1748126903298,7.40393827,2534.8,2534.5,0.78879]
[1748126903299,0.78879,2534.6,2534.5,0.78879]
[1748126903501,1.61522827,2534.8,2534.6,0.78876]
[1748126903502,21.74854,2534.7,2534.6,0.78876]
[1748126903701,21.74854,2534.7,2534.6,0.29942815]
[1748126904001,21.82403626,2534.7,2534.6,0.29942815]
[1748126904202,23.12833626,2534.7,2534.6,0.29942815]
[1748126905203,0.78879,2534.5,2534.4,0.78881]
[1748126905401,0.78879,2534.5,2534.4,1.08823103]
[1748126905701,0.78879,2534.5,2534.4,1.08822775]
[1748126907202,0.78879,2534.5,2534.4,17.51922775]
[1748126910808,0.78878,2534.6,2534.5,0.78878]
[1748126911108,5.62212845,2534.7,2534.6,1.47306]
[1748126911296,5.62212845,2534.7,2534.6,1.65951775]
[1748126911501,6.41085845,2534.7,2534.6,2.44827775]
[1748126911809,4.07202626,2534.7,2534.6,2.44827775]
[1748126912107,3.28329626,2534.7,2534.6,2.44827775]
[1748126912507,3.28329626,2534.7,2534.6,2.44826949]
[1748126913105,3.2078,2534.7,2534.6,2.44826949]
[1748126913308,0.78873,2534.7,2534.6,2.44826949]
[1748126913512,3.99653,2534.7,2534.6,0.29940949]
[1748126913709,5.97783,2534.7,2534.6,0.29940949]
[1748126914008,8.31666219,2534.7,2534.6,0.29940949]
[1748126914209,8.39215845,2534.7,2534.6,0.29940949]
[1748126914411,0.78876,2534.6,2534.5,16.431]
[1748126914609,2.78006,2534.6,2534.5,17.28762365]
[1748126915010,5.11889219,2534.6,2534.5,17.28762365]
[1748126915712,5.11889219,2534.6,2534.5,17.28760989]
[1748126915907,5.11889219,2534.6,2534.5,0.85660989]
[1748126916304,0.78879,2534.5,2534.4,16.431]
[1748126916509,2.16759,2534.5,2534.4,17.28761745]
[1748126917514,1.3788,2534.5,2534.4,18.07641826]
[1748126917708,1.3788,2534.5,2534.4,2.97321826]
[1748126918012,1.3788,2534.5,2534.4,2.97317133]
[1748126919016,2.16759,2534.5,2534.4,2.18435133]
[1748126920015,2.16759,2534.5,2534.4,2.97317133]
[1748126920416,2.16759,2534.5,2534.4,2.18435133]
[1748126920918,2.16759,2534.5,2534.4,2.97317133]
[1748126921212,1.3788,2534.5,2534.4,2.97317133]
[1748126921517,3.12761219,2534.6,2534.4,2.97315133]
[1748126921818,3.12761219,2534.6,2534.5,0.85647068]
[1748126922020,3.12761219,2534.6,2534.5,2.27637068]
[1748126922617,4.52501219,2534.6,2534.5,2.27637068]
[1748126922812,3.12761219,2534.6,2534.5,2.27637068]
[1748126923016,2.33883219,2534.6,2534.5,3.06517068]
[1748126924513,6.71586845,2534.7,2534.6,0.78876]
[1748126924709,6.71586845,2534.7,2534.6,1.64523068]
[1748126925019,6.71586845,2534.7,2534.6,0.85647068]
[1748126925615,6.71586845,2534.7,2534.6,0.85645651]
[1748126925920,6.71586845,2534.7,2534.6,0.55710777]
[1748126926408,6.71586845,2534.7,2534.6,0.85645556]
[1748126927423,6.71586845,2534.7,2534.6,1.64522556]
[1748126927624,3.50806845,2534.7,2534.6,1.64522556]
[1748126927822,6.71586845,2534.7,2534.6,1.64522556]
[1748126928018,6.41086845,2534.7,2534.6,1.64522556]
[1748126928723,6.41086845,2534.7,2534.6,1.64520488]
[1748126929120,6.41086845,2534.7,2534.6,1.64509296]
[1748126929624,5.62212845,2534.7,2534.6,1.64509296]
[1748126931018,5.62212845,2534.7,2534.6,1.64566624]
[1748126931925,2.41432845,2534.7,2534.6,1.64566624]
[1748126932119,0.07549626,2534.7,2534.6,1.64566624]
[1748126932926,0.07549626,2534.7,2534.6,1.64551343]
[1748126933321,0.07549626,2534.7,2534.6,2.30401343]
[1748126936728,0.07549626,2534.7,2534.6,2.30327849]
[1748126938129,0.86423626,2534.7,2534.6,2.30327849]
[1748126938325,3.28329626,2534.7,2534.6,18.70427849]
[1748126938630,0.07549626,2534.7,2534.6,18.70430854]
[1748126939821,0.07549626,2534.7,2534.6,2.30330854]
[1748126940027,0.86423626,2534.7,2534.6,18.70430854]
[1748126940430,0.86423626,2534.7,2534.6,18.7043406]
[1748126940930,4.07203626,2534.7,2534.6,18.7043406]
[1748126941433,3.28329626,2534.7,2534.6,18.7043406]
[1748126941634,3.28329626,2534.7,2534.6,18.70453395]
[1748126943432,3.28329626,2534.7,2534.6,18.70482106]
[1748126945339,3.28329626,2534.7,2534.6,18.70516623]
[1748126945532,4.07203626,2534.7,2534.6,18.70516623]
[1748126946636,3.28329626,2534.7,2534.6,18.70516623]
[1748126947135,3.28329626,2534.7,2534.6,18.70517232]
[1748126951036,3.28329626,2534.7,2534.6,18.70538317]
[1748126952939,3.28329626,2534.7,2534.6,18.70556512]
[1748126954140,3.28329626,2534.7,2534.6,2.30456512]
[1748126954343,4.58679626,2534.7,2534.6,18.67056512]
[1748126954746,4.5113,2534.7,2534.6,18.67056512]
[1748126955142,1.3035,2534.7,2534.6,18.67056512]
[1748126955639,0.66612827,2534.8,2534.7,0.78874]
[1748126955838,0.00592827,2534.8,2534.7,2.94653512]
[1748126956535,0.00592827,2534.8,2534.7,2.94688364]
[1748126959944,0.08142453,2534.8,2534.7,2.94688364]
[1748126960147,0.87013453,2534.8,2534.7,2.15861525]
[1748126960340,2.20153453,2534.8,2534.7,17.22411525]
[1748126960532,2.20153453,2534.8,2534.7,0.85811525]
[1748126960739,24.95253453,2534.8,2534.7,0.85811525]
[1748126961045,24.95253453,2534.8,2534.7,0.55787383]
[1748126962143,0.78881,2534.5,2534.3,17.15484]
[1748126962444,1.3644,2534.4,2534.3,17.15484]
[1748126962648,2.7167,2534.4,2534.3,18.01279365]
[1748126963743,2.7167,2534.4,2534.3,18.01265407]
[1748126965344,3.50553,2534.4,2534.3,18.01265407]
[1748126965542,3.2078,2534.5,2534.4,0.78883]
[1748126965741,2.36288484,2534.7,2534.6,0.78877]
[1748126965936,2.36288484,2534.7,2534.6,1.64606258]
[1748126966542,2.36288484,2534.7,2534.6,2.97806258]
[1748126967663,2.36288484,2534.7,2534.6,2.97792768]
[1748126967850,2.91213827,2534.8,2534.7,0.78874]
[1748126968050,2.91213827,2534.8,2534.7,19.34489768]
[1748126968956,0.00592827,2534.8,2534.7,19.34489768]
[1748126969146,3.21372827,2534.8,2534.7,19.34489768]
[1748126969346,0.00592827,2534.8,2534.7,19.34489768]
[1748126970044,0.00592827,2534.8,2534.7,22.55269768]
[1748126970254,0.00592827,2534.8,2534.7,19.34489768]
[1748126971146,0.08142453,2534.8,2534.7,19.34489768]
[1748126972451,0.08142453,2534.8,2534.7,2.97789768]
[1748126972650,0.08142453,2534.8,2534.7,19.34389768]
[1748126973051,0.08142453,2534.8,2534.7,19.34366671]
[1748126974955,0.08142453,2534.8,2534.7,19.3432417]
[1748126975857,0.08142453,2534.8,2534.7,19.3421203]
[1748126976763,0.78874,2534.7,2534.6,0.78877]
[1748126976952,2.89524,2534.7,2534.6,1.64512987]
[1748126977155,2.89524,2534.7,2534.6,1.64513664]
[1748126977660,2.1065,2534.7,2534.6,1.64513664]
[1748126978056,2.89524,2534.7,2534.6,0.85636664]
[1748126978262,7.89524,2534.7,2534.6,0.55667677]
[1748126979561,2.89524,2534.7,2534.6,0.55667677]
[1748126980255,8.20024,2534.7,2534.6,0.55667677]
[1748126980566,0.78883,2534.4,2534.3,17.08369743]
[1748126980762,3.99663,2534.4,2534.3,17.08369743]
[1748126981661,0.78886,2534.3,2534.1,0.78891]
[1748126981957,0.695,2534.2,2534.1,0.78892]
[1748126982156,1.3959,2534.2,2534.1,17.41554451]
[1748126982358,2.6963,2534.2,2534.1,17.41549684]
[1748126984259,2.6963,2534.2,2534.1,17.41545192]
[1748126987967,2.6963,2534.2,2534.1,17.41532314]
[1748126990264,3.48519,2534.2,2534.1,17.41532314]
[1748126990470,3.2078,2534.3,2534.2,0.78889]
[1748126990665,21.75066,2534.3,2534.2,2.38219314]
[1748126990956,20.9618,2534.3,2534.2,2.38219314]
[1748126992860,21.75066,2534.3,2534.2,2.38219314]
[1748126993569,20.9618,2534.3,2534.2,2.38219314]
[1748126993868,21.75066,2534.3,2534.2,2.38219314]
[1748126994170,20.9618,2534.3,2534.2,2.38219314]
[1748126994572,21.75066,2534.3,2534.2,2.38219314]
[1748126994870,23.15266,2534.3,2534.2,2.38219314]
[1748126995272,23.15266,2534.3,2534.2,2.38210258]
[1748126995468,22.3638,2534.3,2534.2,2.38210193]
[1748126996372,22.3638,2534.3,2534.2,2.08279]
[1748126996874,23.15266,2534.3,2534.2,2.08279]
[1748126999182,22.3638,2534.3,2534.2,2.08279]
[1748126999482,22.3638,2534.3,2534.2,2.38144272]
[1748126999782,4.6098,2534.3,2534.2,2.38144272]
[1748127000873,4.6098,2534.3,2534.2,2.38147531]
[1748127002187,5.39866,2534.3,2534.2,2.38147531]
[1748127003486,4.6098,2534.3,2534.2,2.38147531]
[1748127003982,4.6098,2534.3,2534.2,2.08279]
[1748127004179,4.6098,2534.3,2534.2,2.38174969]
[1748127004586,3.2078,2534.3,2534.2,2.38174969]
[1748127005687,3.28329626,2534.3,2534.2,2.38174969]
[1748127005885,3.28329626,2534.3,2534.2,2.38207375]
[1748127006587,3.2078,2534.3,2534.2,2.38207375]
[1748127007887,3.2078,2534.3,2534.2,2.38250793]
[1748127008390,3.2078,2534.3,2534.2,2.3825586]
[1748127008589,3.2078,2534.3,2534.2,2.93628807]
[1748127008791,18.54378,2534.6,2534.2,2.93628807]
[1748127008792,3.14786671,2534.6,2534.2,4.11962807]
[1748127008992,2.35908671,2534.6,2534.5,0.7888]
[1748127009191,2.35908671,2534.6,2534.5,17.97329807]
[1748127009594,2.35908671,2534.6,2534.5,17.97331431]
[1748127009801,2.35908671,2534.6,2534.5,17.9733143]
[1748127010290,3.14785671,2534.6,2534.5,17.1845143]
[1748127010688,3.14785671,2534.6,2534.5,19.2813143]
[1748127011594,3.14785671,2534.6,2534.5,19.28155643]
[1748127013696,2.35908671,2534.6,2534.5,19.28155643]
[1748127014593,3.14785671,2534.6,2534.5,19.28155643]
[1748127014803,5.56688671,2534.7,2534.6,0.78877]
[1748127015092,5.56688671,2534.7,2534.6,2.13637]
[1748127015296,5.56688671,2534.7,2534.6,2.98984903]
[1748127015493,5.56688671,2534.7,2534.6,2.98976191]
[1748127015898,3.2078,2534.7,2534.6,2.98976191]
[1748127016698,0.00592827,2534.8,2534.7,0.78874]
[1748127016899,0.00592827,2534.8,2534.7,3.63463191]
[1748127017098,0.00592827,2534.8,2534.7,3.63411797]
[1748127018797,0.00592827,2534.8,2534.7,3.63365812]
[1748127020696,0.00592827,2534.8,2534.7,3.63304837]
[1748127021598,0.00592827,2534.8,2534.7,8.63304837]
[1748127022606,3.2078,2535.3,2535.2,0.78858]
[1748127022793,3.2078,2535.3,2535.2,17.92642335]
[1748127023904,3.2078,2535.3,2535.2,19.22542335]
[1748127026209,3.2078,2535.3,2535.2,19.22469755]
[1748127027610,0.00592827,2535.5,2535.4,0.78852]
[1748127027803,0.00592827,2535.5,2535.4,1.34008826]
[1748127028003,0.00592827,2535.5,2535.4,1.33992993]
[1748127028309,0.00592827,2535.5,2535.4,2.76042993]
[1748127029110,0.00592827,2535.5,2535.4,3.05870129]
[1748127029502,0.00592827,2535.5,2535.4,2.76042993]
[1748127029909,0.00592827,2535.5,2535.4,2.76004543]
[1748127031907,1.37302827,2535.5,2535.4,2.76004543]
[1748127032613,2.16151827,2535.5,2535.4,2.76004543]
[1748127032803,1.37302827,2535.5,2535.4,2.76004543]
[1748127033210,2.16151827,2535.5,2535.4,2.76004543]
[1748127033616,2.16151827,2535.5,2535.4,2.76002694]
[1748127035016,2.23701453,2535.5,2535.4,2.76002694]
[1748127035417,2.23701453,2535.5,2535.4,2.20902]
[1748127035617,2.23701453,2535.5,2535.4,2.75996355]
[1748127035917,2.23701453,2535.5,2535.4,2.20902]
[1748127036120,1.44852453,2535.5,2535.4,2.75992553]
[1748127037417,1.44852453,2535.5,2535.4,2.76011542]
[1748127038322,2.23701453,2535.5,2535.4,2.76011542]
[1748127038528,1.44852453,2535.5,2535.4,2.76011542]
[1748127038730,2.23701453,2535.5,2535.4,16.83409542]
[1748127041135,2.23701453,2535.5,2535.4,16.83440801]
[1748127042035,1.44852453,2535.5,2535.4,17.62292801]
[1748127042237,2.23706453,2535.5,2535.4,17.62292801]
[1748127042538,2.23706453,2535.5,2535.4,17.92143611]
[1748127042730,2.23706453,2535.5,2535.4,16.83440801]
[1748127042932,2.23706453,2535.5,2535.4,17.62298801]
[1748127043125,2.23706453,2535.5,2535.4,16.83440801]
[1748127043435,2.23706453,2535.5,2535.4,17.13304406]
[1748127044731,2.23706453,2535.5,2535.4,17.92240107]
[1748127046138,2.23706453,2535.5,2535.4,17.92325264]
[1748127046338,2.23706453,2535.5,2535.4,17.13467264]
[1748127046739,2.23706453,2535.5,2535.4,17.13501197]
[1748127047238,2.23706453,2535.5,2535.4,17.92359197]
[1748127047746,2.23706453,2535.5,2535.4,1.64059197]
[1748127047939,2.23706453,2535.5,2535.4,17.87559197]
[1748127048241,2.23706453,2535.5,2535.4,0.85201197]
[1748127048543,2.23706453,2535.5,2535.4,17.08748679]
[1748127049139,2.23706453,2535.5,2535.4,0.85248679]
[1748127050239,2.23706453,2535.5,2535.4,0.55338158]
[1748127050441,0.78859,2535.4,2535.3,16.235]
[1748127050641,2.12349,2535.4,2535.3,17.08835052]
[1748127052142,2.12349,2535.4,2535.3,0.85349061]
[1748127052331,2.12349,2535.4,2535.3,17.08949061]
[1748127053244,2.12349,2535.4,2535.3,0.85349061]
[1748127053444,4.48257671,2535.4,2535.3,17.08949061]
[1748127054045,4.48257671,2535.4,2535.3,17.08941464]
[1748127054934,2.12349,2535.4,2535.3,17.08941464]
[1748127055648,2.12349,2535.4,2535.3,17.0892718]
[1748127057846,2.12349,2535.4,2535.3,17.08889384]
[1748127058548,2.12349,2535.4,2535.3,17.08886597]
[1748127059651,2.12349,2535.4,2535.3,17.08876891]
[1748127059948,2.12349,2535.4,2535.3,0.85276891]
[1748127060138,2.12349,2535.4,2535.3,17.08876891]
[1748127060342,2.12349,2535.4,2535.3,0.55358]
[1748127060539,0.78868,2535.1,2535.0,0.00592827]
[1748127060743,21.74448,2535.1,2535.0,0.55963067]
[1748127060939,21.74448,2535.1,2535.0,0.00592827]
[1748127062750,21.74448,2535.1,2535.0,1.32392827]
[1748127062954,24.10598492,2535.1,2535.0,1.32392827]
[1748127063852,24.10598492,2535.1,2535.0,0.00592827]
[1748127064456,24.18148118,2535.1,2535.0,0.00592827]
[1748127065455,24.10598492,2535.1,2535.0,0.00592827]
[1748127066456,0.78877,2534.8,2534.7,1.2833]
[1748127066651,3.99657,2534.8,2534.7,1.2833]
[1748127070657,0.78884,2534.6,2534.5,16.24391634]
[1748127070852,0.78884,2534.6,2534.5,0.00591634]
[1748127071053,5.78884,2534.6,2534.5,6.34e-06]
[1748127073149,6.09384,2534.6,2534.5,6.34e-06]
[1748127073565,9.23238408,2534.6,2534.5,6.34e-06]
[1748127074657,10.62678408,2534.6,2534.5,6.34e-06]
[1748127078159,7.48824,2534.6,2534.5,6.34e-06]
[1748127078959,20.24424,2534.6,2534.5,6.34e-06]
[1748127080066,25.24424,2534.6,2534.5,6.34e-06]
[1748127084367,20.24424,2534.6,2534.5,6.34e-06]
[1748127084666,25.24424,2534.6,2534.5,6.34e-06]
[1748127085267,25.24624,2534.6,2534.5,6.34e-06]
[1748127086066,2.48824,2534.6,2534.5,6.34e-06]
[1748127086268,20.24624,2534.6,2534.5,6.34e-06]
[1748127086865,2.48824,2534.6,2534.5,6.34e-06]
[1748127087169,18.85184,2534.6,2534.5,6.34e-06]
[1748127089668,20.15174,2534.6,2534.5,6.34e-06]
[1748127092170,23.29028408,2534.6,2534.5,6.34e-06]
[1748127093773,21.99038408,2534.6,2534.5,6.34e-06]
[1748127095973,18.92733626,2534.6,2534.5,6.34e-06]
[1748127096973,18.85184,2534.6,2534.5,6.34e-06]
[1748127100476,22.72490232,2534.6,2534.5,6.34e-06]
[1748127102274,0.78918,2533.5,2533.4,0.71769743]
[1748127102478,3.99698,2533.5,2533.4,1.01698515]
[1748127102972,6.36346695,2533.5,2533.4,0.29929872]
[1748127103566,6.36346695,2533.5,2533.4,2.38349872]
[1748127104677,6.36346695,2533.5,2533.4,2.38324323]
[1748127105177,6.36346695,2533.5,2533.4,2.0842]
[1748127106477,3.99698,2533.5,2533.4,2.0842]
[1748127107677,4.30198,2533.5,2533.4,2.0842]
[1748127108580,25.21829594,2533.5,2533.4,2.0842]
[1748127109482,24.42335722,2533.5,2533.4,2.0842]
[1748127109984,6.66235722,2533.5,2533.4,2.0842]
[1748127110179,24.42335722,2533.5,2533.4,2.0842]
[1748127110472,22.06298,2533.5,2533.4,2.0842]
[1748127115480,0.78921,2533.4,2533.3,0.6441]
[1748127115675,1.49661,2533.4,2533.2,0.00591634]
[1748127115878,2.13664,2533.3,2533.2,0.00591634]
[1748127118784,0.78924,2533.3,2533.2,0.00591634]
[1748127119382,3.45153007,2533.3,2533.2,0.00591634]
[1748127119581,4.87483007,2533.3,2533.2,0.00591634]
[1748127121090,2.51754,2533.3,2533.2,0.00591634]
[1748127123087,2.51754,2533.3,2533.2,6.34e-06]
[1748127123387,0.78943,2532.7,2532.6,2.04]
[1748127123685,3.99723,2532.7,2532.6,2.04]
[1748127126084,0.78949,2532.5,2532.4,0.00591634]
[1748127126290,0.78949,2532.5,2532.4,2.06551634]
[1748127126489,1.09449,2532.5,2532.4,0.00591634]
[1748127126986,1.77019,2532.5,2532.4,0.00591634]
[1748127129088,1.77019,2532.5,2532.4,6.34e-06]
[1748127130689,4.91302752,2532.5,2532.4,6.34e-06]
[1748127132988,0.78974,2531.7,2531.6,0.6801]
[1748127133189,3.2078,2531.7,2531.6,1.9797]
[1748127133390,3.99754,2531.7,2531.6,2.6754]
[1748127135991,5.31674,2531.7,2531.6,2.6754]
[1748127137591,0.78981,2531.5,2531.4,0.00591634]
[1748127138195,18.56081,2531.5,2531.4,0.00591634]
[1748127138496,0.78981,2531.5,2531.4,0.00591634]
[1748127138695,18.56281,2531.5,2531.4,0.00591634]
[1748127140403,19.22601,2531.5,2531.4,0.00591634]
[1748127143601,19.91951,2531.5,2531.4,0.00591634]
[1748127145905,20.22451,2531.5,2531.4,0.00591634]
[1748127146811,19.53101,2531.5,2531.4,0.00591634]
[1748127147109,1.75801,2531.5,2531.4,0.00591634]
[1748127147311,18.87081,2531.5,2531.4,0.00591634]
[1748127148609,20.29321,2531.5,2531.4,0.00591634]
[1748127148808,20.29421,2531.5,2531.4,0.00591634]
[1748127150217,20.29421,2531.5,2531.4,6.34e-06]
[1748127151216,22.6473283,2531.5,2531.4,6.34e-06]
[1748127152517,3.4479283,2531.5,2531.4,6.34e-06]
[1748127152717,21.2259283,2531.5,2531.4,6.34e-06]
[1748127153414,1.09481,2531.5,2531.4,6.34e-06]
[1748127153711,18.87281,2531.5,2531.4,6.34e-06]
[1748127154316,0.305,2531.5,2531.4,6.34e-06]
[1748127154516,0.78981,2531.5,2531.4,5.00000634]
[1748127155113,18.56779,2531.6,2531.4,5.00000634]
[1748127155318,18.56779,2531.6,2531.5,2.0588]
[1748127155719,18.56779,2531.6,2531.5,7.0588]
[1748127156518,0.78979,2531.6,2531.5,7.0588]
[1748127157411,0.78979,2531.6,2531.5,2.0588]
[1748127160225,0.78979,2531.6,2531.5,7.0588]
[1748127162234,0.78979,2531.6,2531.5,2.0588]
[1748127178945,0.78979,2531.6,2531.5,7.0588]
[1748127179140,3.2078,2531.7,2531.5,7.0588]
[1748127179350,3.2078,2531.7,2531.6,2.39115809]
[1748127179533,3.99754,2531.7,2531.6,2.28037809]
[1748127179734,3.99754,2531.7,2531.6,23.36737809]
[1748127180744,3.99754,2531.7,2531.6,23.93237529]
[1748127183043,3.99754,2531.7,2531.6,23.93265687]
[1748127183434,3.99754,2531.7,2531.6,7.84565687]
[1748127183639,3.99754,2531.7,2531.6,2.16665687]
[1748127183840,3.99754,2531.7,2531.6,0.5649972]
[1748127184239,4.67754,2531.7,2531.6,0.5649972]
[1748127184749,0.78978,2531.6,2531.5,16.085]
[1748127185050,2.11868,2531.6,2531.5,0.86575852]
[1748127185249,2.11868,2531.6,2531.5,0.56573488]
[1748127186642,0.78981,2531.5,2531.4,16.08500634]
[1748127186852,2.80741,2531.5,2531.4,16.65074826]
[1748127187649,2.80228267,2531.5,2531.4,16.65074826]
[1748127188846,5.16592067,2531.5,2531.4,0.56574826]
[1748127189050,22.94092067,2531.5,2531.4,0.56574826]
[1748127189545,0.78999,2530.9,2530.8,0.71769743]
[1748127189856,0.79002,2530.8,2530.7,1.2908]
[1748127190053,0.79006,2530.7,2530.6,0.71769743]
[1748127190351,3.99786,2530.7,2530.6,0.71769743]
[1748127190547,5.29946,2530.7,2530.6,0.71769743]
[1748127190951,23.07446,2530.7,2530.6,0.71769743]
[1748127191253,0.79012,2530.5,2530.4,0.00396012]
[1748127192049,2.08692,2530.5,2530.4,0.00396012]
[1748127195256,1.47052,2530.6,2530.4,0.00396012]
[1748127195452,3.99788,2530.7,2530.4,0.79410012]
[1748127195652,3.99788,2530.7,2530.5,2.7546]
[1748127195853,3.99788,2530.7,2530.6,16.84509]
[1748127195854,3.2078,2530.7,2530.6,16.84509]
[1748127196055,3.2078,2530.7,2530.6,16.055]
[1748127196566,3.2078,2530.7,2530.6,16.84509]
[1748127196867,0.79001,2530.9,2530.7,0.79005]
[1748127197067,0.79001,2530.9,2530.8,1.2943]
[1748127201571,0.79001,2530.9,2530.8,1.84974507]
[1748127201970,0.79001,2530.9,2530.8,1.84974703]
[1748127203159,3.99778,2531.0,2530.8,2.63976703]
[1748127203364,3.2078,2531.0,2530.9,1.34543703]
[1748127203565,3.2078,2531.0,2530.9,2.74273703]
[1748127203870,3.2078,2531.0,2530.9,2.74275117]
[1748127204569,3.99776,2531.0,2530.9,2.74275117]
[1748127205172,3.99776,2531.0,2530.9,1.95276117]
[1748127205660,3.99776,2531.0,2530.9,1.95288521]
[1748127207474,3.99776,2531.0,2530.9,1.9530237]
[1748127211274,3.99776,2531.0,2530.9,1.95335219]
[1748127212675,3.99776,2531.0,2530.9,1.95363195]